Cogmind - Beta 16 @@@ ROGUE MODE // 2025.11.16 @ 14:44:53 // AFD2020/Player2 Player: daniels1231 Result: Destroyed by S-10 Pest with Light Assault Rifle Performance ------------- Evolutions (0) 0 Regions Visited (1) 200 Robots Destroyed (12) 60 Value Destroyed (193) 193 Prototype IDs (0) 0 Alien Tech Used (0) 0 Bonus (-61) -61 TOTAL SCORE: 392 Bonus ------- Follower Combat Kills 25 Friendly Fire -86 Cogmind --------- Core Integrity 0/250 Matter 299/300 Energy 88/100 System Corruption 2% Temperature Cool (5) Movement Walking (120) Location -10/Materials Parts ------- > --- POWER (1) -------- (None) > --- PROPULSION (2) --- Aluminum Leg Aluminum Leg > --- UTILITY (2) ------ Small Storage Unit > --- WEAPON (2) ------- Small Laser Light Assault Rifle > --- INVENTORY (8) ---- Datajack Peak State ------------ > --- POWER ------------ Ion Engine > --- PROPULSION ------- Wheel Wheel > --- UTILITY ---------- Small Storage Unit > --- WEAPON ----------- EM Pulse Gun Assault Rifle > --- INVENTORY -------- (None) [Rating: 6] Favorites ----------- Power Ion Engine Engine Ion Engine Propulsion Wheel Leg Aluminum Leg Wheel Wheel Utility Small Storage Unit Device Structural Scanner Storage Small Storage Unit Weapon Assault Rifle Energy Gun EM Pulse Gun Ballistic Gun Assault Rifle Build | -11 -10 ------- Run | Yrd Mat Slots Evolved . | . . Power . | . . Propulsion . | . . Utility . | . . Weapon . | . . Parts Attached 11 | 6 5 Power 1 | 1 . Engine 1 | 1 . Core . | . . Reactor . | . . Propulsion 4 | 2 2 Treads . | . . Leg 2 | . 2 Wheel 2 | 2 . Hover . | . . Flight . | . . Utility 2 | 1 1 Device 1 | . 1 Storage 1 | 1 . Processor . | . . Hackware . | . . Protection . | . . Artifact . | . . Weapon 4 | 2 2 Energy Gun 2 | 1 1 Energy Cannon . | . . Ballistic Gun 2 | 1 1 Ballistic Cannon . | . . Launcher . | . . Special Weapon . | . . Impact Weapon . | . . Slashing Weapon . | . . Piercing Weapon . | . . Special Melee Weapon . | . . Unidentified Prototypes . | . . Parts Lost 5 | . 5 Power 1 | . 1 Propulsion 2 | . 2 Utility . | . . Weapon 2 | . 2 Highest Loss Streak 3 | . 3 To Critical Strikes . | . . Average Backups . | . . Power . | . . Propulsion . | . . Utility . | . . Weapon . | . . Tool/Special . | . . Unused Backups 1 | . 1 Power . | . . Propulsion . | . . Utility . | . . Weapon . | . . Tool/Special 1 | . 1 Average Slot Usage (%) 68 | . 68 Engine 9 | . 9 Leg 5 | . 5 Wheel 15 | . 15 Device 6 | . 6 Storage 14 | . 14 Energy Gun 9 | . 9 Ballistic Gun 6 | . 6 Peak Build Rating 6 | 6 6 Average Rating 4 | 4 4 On Entrance 3 | . 6 Avg Prop Armor Cover (%) . | . . Naked Turns . | . . Heaviest Build 14 | 14 14 Greatest Support 20 | 20 20 Greatest Overweight (x) 2 | . 2 Average Overweight (x) . | . . Largest Inventory Capacity 8 | 8 8 Average Capacity 7 | 6 8 Most Carried 1 | . 1 Average Carried . | . . Final Capacity 8 | 8 8 Final Carried 1 | . 1 Class Distribution -------------------- 83% | Mutant 16% | Scavenger-Mutant Dominant Class ---------------- Mutant | -10/Materials Resources | -11 -10 ----------- Run | Yrd Mat Matter Collected 337 | 201 136 Remotely . | . . Salvage Created 293 | . 293 Parts 25 | . 25 Haulers Intercepted . | . . Recyclers Shooed . | . . Parts Field Recycled . | . . Retrieved Matter . | . . Parts Self-Destructed . | . . Prevented . | . . Parts Restored . | . . Kills | -11 -10 ------- Run | Yrd Mat Combat Hostiles Destroyed 9 | . 9 Melee 1 | . 1 Guns 7 | . 7 AOE 1 | . 1 Classes Destroyed 4 | . 4 Worker 2 | . 2 Builder 1 | . 1 Swarmer 5 | . 5 Grunt 4 | . 4 Best Kill Streak 8 | . 8 Combat Bots Only 5 | . 5 Max Kills in Single Turn 2 | . 2 Gunslinging 1 | . 1 Exploded 1 | . 1 Melee 1 | . 1 Uniques/NPCs Destroyed . | . . Combat | -11 -10 -------- Run | Yrd Mat Hostile Shots Fired 76 | . 76 Missed 19 | . 19 Hits 57 | . 57 Projectile 57 | . 57 Critical Strikes 1 | . 1 Damage Taken 581 | . 581 Core 201 | . 201 Absorbed by Shields . | . . Core Remaining (%) 100 | 100 . Volleys Fired 27 | . 27 Largest 2 | . 2 Hottest 60 | . 60 Shots Fired 49 | . 49 Gun 49 | . 49 Cannon . | . . Launcher . | . . Special . | . . Kinetic 22 | . 22 Thermal 5 | . 5 Explosive . | . . Electromagnetic 22 | . 22 Robot Hit Streak 4 | . 4 Robot Miss Streak 3 | . 3 Penetration Max . | . . Secondary Targets 2 | . 2 Max Gunslinging Chain 1 | . 1 Shots Hit Robots 22 | . 22 Core Hits 19 | . 19 Critical Kills . | . . Critical Parts Destroyed . | . . Critical Strikes . | . . Melee Attacks . | . . Impact . | . . Slashing . | . . Piercing . | . . Sneak Attacks . | . . Combat Hostiles . | . . Follow-up Attacks . | . . Damage Inflicted 449 | . 449 Guns 342 | . 342 Cannons . | . . Explosions 48 | . 48 Melee . | . . Ramming 59 | . 59 Kinetic 138 | . 138 Thermal 70 | . 70 Explosive . | . . Electromagnetic 182 | . 182 Impact . | . . Slashing . | . . Piercing . | . . Highest Corruption 2 | . 2 Average Corruption 2 | . 2 Corruption Purged . | . . Corruption Blocked . | . . Effects 1 | . 1 Parts Rejected 1 | . 1 Overload Shots . | . . Overflow Damage . | . . Projectiles . | . . Explosions . | . . Melee . | . . Knockbacks . | . . Impact . | . . Kinetic . | . . Secondary . | . . Self-Inflicted Damage 23 | . 23 Shots . | . . Rammed 22 | . 22 Targets Rammed 22 | . 22 Kicked . | . . Crushed . | . . Highest Temperature 56 | . 56 Average Temperature 25 | . 25 Received Heat Transfer 210 | . 210 Siege Activations . | . . Martial Activations . | . . Shielding Activations . | . . Robots Disrupted . | . . Combat Hostiles . | . . Robots Corrupted . | . . Combat Hostiles . | . . Parts Fried . | . . Impact Corruptions . | . . Robots Melted . | . . Combat Hostiles . | . . Parts Melted . | . . Heat Transferred 100 | . 100 Parts Sabotaged . | . . Parts Stolen . | . . Parts Stripped . | . . Power Chain Reactions 1 | . 1 Alert | -11 -10 ------- Run | Yrd Mat Maximum Alert Level . | . . Low Security (%) 100 | 100 100 Level 1 . | . . Level 2 . | . . Level 3 . | . . Level 4 . | . . Level 5 . | . . High Security . | . . Max Security . | . . Peak Influence 174 | . 174 Initial . | . . Average 67 | . 81 Influence Increases 331 | . 331 Destroy 0b10 Robot/C 200 | . 200 Destroy 0b10 Robot/NC 20 | . 20 Destroy Leader 32 | . 32 Allied During Kill 60 | . 60 Destroy Structure 4 | . 4 Lose Combat Pursuer 15 | . 15 Influence Decreases 220 | . 220 Time Decay 130 | . 130 Lost Part 90 | . 90 Squads Dispatched 2 | . 2 Investigation . | . . Extermination . | . . Reinforcement 2 | . 2 Assault . | . . Garrison . | . . Intercept . | . . Searches Triggered . | . . Construction Impeded . | . . Haulers Reinforced . | . . Active Scanning Responses . | . . Cargo Convoy Interrupts . | . . Stealth | -11 -10 --------- Run | Yrd Mat Distress Signals 2 | . 2 Communications Jammed . | . . Distress Signals . | . . Times Spotted 22 | . 22 Peak Tracking Total 7 | . 7 Tactical Retreats 1 | . 1 Traps | -11 -10 ------- Run | Yrd Mat Traps Triggered . | . . Indirectly . | . . Trap Hack Attempts . | . . Triggered . | . . Disarmed . | . . Reprogrammed . | . . Reused . | . . Traps Extracted . | . . Installed . | . . Triggered . | . . Machines | -11 -10 ---------- Run | Yrd Mat Machines Disabled . | . . Max in Single Turn . | . . Machines Repaired . | . . Machines Dismantled . | . . Machines Sabotaged . | . . Overloaded Fab Kills . | . . Hacking | -11 -10 --------- Run | Yrd Mat Machines Accessed . | . . Terminals . | . . Fabricators . | . . Repair Stations . | . . Recycling Units . | . . Scanalyzers . | . . Garrison Access . | . . Total Hacks . | . . Successful . | . . Failed . | . . Catastrophic . | . . Database Lockouts . | . . Manual . | . . Terminals . | . . Fabricators . | . . Repair Stations . | . . Recycling Units . | . . Scanalyzers . | . . Garrison Access . | . . Terminal Hacks . | . . Fabricator Hacks . | . . Repair Station Hacks . | . . Recycling Unit Hacks . | . . Scanalyzer . | . . Garrison Access Hacks . | . . Unauthorized Hacks . | . . Terminals . | . . Fabricators . | . . Repair Stations . | . . Recycling Units . | . . Scanalyzers . | . . Garrison Access . | . . Data Cores Recovered . | . . Used . | . . Hacking Detections . | . . Full Trace Events . | . . Feedback Events . | . . Feedback Blocked . | . . Robot Schematics Acquired . | . . Robots Built . | . . Authchips . | . . Time . | . . Total Robot Build Rating . | . . Part Schematics Acquired . | . . Parts Built . | . . Authchips . | . . Time . | . . Total Part Build Rating . | . . Part Studies Acquired . | . . Parts Repaired . | . . Time . | . . Parts Recycled . | . . Recycled Matter . | . . Retrieved Matter . | . . Retrieved Components . | . . Parts Scanalyzed . | . . Part Schematics Acquired . | . . Parts Damaged . | . . Bothacking | -11 -10 ------------ Run | Yrd Mat Used RIF Installer . | . . Robots Hacked . | . . Non-combat . | . . Combat . | . . Robot Hacks Applied . | . . Relay Couplers Released . | . . Fabnet Peak Effective % . | . . Robots Rewired . | . . Allies Hacked . | . . Hacks Repelled . | . . Allies | -11 -10 -------- Run | Yrd Mat Total Allies 1 | . 1 Largest Group 1 | . 1 Highest-Rated Group 56 | . 56 Highest-Rated Ally 56 | . 56 Total Orders . | . . Ally Attacks 21 | . 21 Total Damage 92 | . 92 Kills 2 | . 2 Allies Corrupted . | . . Allies Melted . | . . Intel | -11 -10 ------- Run | Yrd Mat Active Infowar (turns) 59 | . 59 Structural 59 | . 59 Robot Analysis Total . | . . Derelict Logs Recovered . | . . Drone Launches . | . . Drone Recoveries . | . . Exploration | -11 -10 ------------- Run | Yrd Mat Turns Passed 365 | 60 305 Spaces Moved 275 | 65 210 Core 20 | 4 16 Treads . | . . Legs 46 | . 46 Wheels 209 | 61 148 Hover . | . . Flight . | . . Fastest Speed 50 | 50 80 Average Speed 90 | 78 94 Slowest Speed 150 | 80 150 Overloaded Moves . | . . Propulsion Burnouts . | . . Robots Hopped . | . . Potential Cave-ins . | . . Cave-ins Triggered . | . . Exploration Rate (%) 21 | 4 39 Regions Visited 1 Branch Regions . Pre-discovered Areas . | . . Known Exits Taken . | . . Unknown Exits Taken 1 | 1 . Scrap Searched . | . . Spaces Dug . | . . Terrain Destroyed 3 | . 3 Melee . | . . Projectile . | . . AOE 3 | . 3 Terrain Rammed . | . . Walls Destroyed . | . . Machines Disabled . | . . Actions | -11 -10 --------- Run | Yrd Mat Total 335 | 70 265 Wait . | . . Move 274 | 64 210 Hop . | . . Pick Up 1 | . 1 Fast Attach 11 | 6 5 Attach . | . . Detach . | . . Swap . | . . Drop . | . . Fire 27 | . 27 Melee . | . . Ram 22 | . 22 Kick . | . . Crush . | . . Escape Stasis . | . . Rewire . | . . Trap . | . . Miscellaneous . | . . Route ------- -11/Scrapyard -10/Materials (discovered 1 exit: [*Min]) History --------- Turn | Location | Event 10 | -11/Scrapyard | Discovered new exit (range 16) 61 | -11/Scrapyard | Entered Materials 229 | -10/Materials | Lost 3 parts (1n2w) 257 | -10/Materials | Core integrity fell below 50% 283 | -10/Materials | Core integrity fell below 20% 287 | -10/Materials | Discovered new exit (range 13) 366 | -10/Materials | Destroyed by S-10 Pest with Light Assault Rifle Last Messages --------------- 00303_ Acquired 5 matter. 00305_ K-01 Serf collects debris. 00305_ Player 2 acquires Ion Engine. 00309_ Acquired 1 matter. 00309_ K-01 Serf collects debris. 00330_ Player 2 acquires Med. Matter Pod. 00349_ System corrupted: Structural Scanner rejected. 00354_ S-10 Pest destroyed. 00356_ K-01 Serf collects debris. 00356_ Player 2 drops Ion Engine. Player 2: "It's dangerous to go alone. Take this." 00358_ S-10 Pest destroyed. 00358_ K-01 Serf collects debris. 00361_ Acquired Lgt. Assault Rifle. 00362_ K-01 Serf collects debris. 00363_ Acquired 14 matter. 00363_ K-01 Serf collects debris. 00365_ K-01 Serf cleans the Matter Pump. Map ----- +----------------------------------------------------+ | ???????????????????# # #????????? | | ???????????????????# # ########## | | ??????????????########## # + / | | ??????????????# # # # ### | | ??????????????# """ # # # #?# | | ??????????????# """ + + # #?# | | ??????????????# """ # # # #?# | | ??????????????# # # # #?# | | ??????????????# """ # ########### ### | | ??????????????# """ # #????????## ### | | ??????????????# """ # #??????#### ######## | | ??????????????# # #??????+ ####### | | ??????????????####?##### +????????## | | ?????????????????????? #????????## | | ??????????????? ????? #????????## | | ??????????????? ? """ #????###### ### ### | | ???????????????? "Y" #????######+###+#### | | ???????????????? a #????## # | | ????????????????? #????## """" + | | ?????????????????# ^ #????## "T" """" # | | ?????????????????# #????## """ """" # | | ?????????????????# """ #????## # | | ?????????????????# """ #????############### | | ?????????????????# """ k #????############### | | ?????????????????# ^k!k #?????#""!"|""#???## | | ?????????????????# = @@ ###???# " "|" #??### | | ???????????????### """s w ##### ##### | | ?????????????? """ | | ??????????? """ < | | ?????????? * u | | ????????# w ##### ##### | | ????????# ################+###???############## | | ???????????????????????????????????? ???### | | ?????????????????????????????????????????????## | | ?????????????????????????????????????????????## | | ?????????????????????????????????????????????## | | ?????????????????????????????????????????????## | | ??????????????????????????????????????????????# | | ??????????????????????????????????????????????# | | ??????????????????????????????????????????????# | | ??????????????????????????????????????????????# | | ??????????????????????????????????????????????? | | ??????????????????????????????????????????????? | | ??????????????????????????????????????????????? | | ??????????????????????????????????????????????? | | ??????????????????????????????????????????????? | | ??????????????????????????????????????????????? | | ??????????????????????????????????????????????? | | ??????????????????????????????????????????????? | | ??????????????????????????????????????????????? | +----------------------------------------------------+ Best States ------------- Heat Dissipation 25 Energy Generation 10 Energy Capacity 250 Matter Stores 300 Matter Capacity 300 Sight Range 16 Terrain Scan Density 10 Evasion (%) 55 Item Schematics ----------------- None Robot Schematics ------------------ None Fabricated ------------ Nothing Repaired ---------- Nothing Studied --------- None Alien Tech Used ----------------- None Achievements -------------- None Challenges ------------ None Player 2 | -11 -10 ---------- Run | Yrd Mat Slots Evolved . | . . Power . | . . Propulsion . | . . Utility . | . . Weapon . | . . Parts Attached 11 | . 11 Parts Lost 4 | . 4 Damage Taken 376 | . 376 Core 51 | . 51 Player 2/Cogmind (%) 20 | . 20 Absorbed by Shields . | . . Damage Inflicted 92 | . 92 Player 2/Cogmind (%) 17 | . 17 Combat Hostiles Destroyed 1 | . 1 Player 2/Cogmind (%) 10 | . 10 Game ------ Seed PlatingScrapoidFocus Manual? 0 Play Time 00:07:12 Cumulative 8.8 hours Start 2025.11.16 @ 14:33:40 End 2025.11.16 @ 14:44:53 Sessions 1 Manual Loads 0 Difficulty Rogue Special Mode AFD2020/Player2 Game No. 16 Rogue 12 Adventurer 4 Explorer 0 Win Type - Total 0 Types 0/0/0/0/0/0/0/0/0/0 Lore% 3 Gallery% 14 Achievement% 13 Wizard Run 0 Options --------- Layout 2 ASCII 0 Keyboard 1 Movement Arrows Keybinds 1 Fullscreen 2 Font 32/SmallcapsGlow Map View 50x44 Zoom Use 0% Tactical HUD 1 Map Filters NONE Filters NONE Steam 1 RUN: 8b5e278f-f99f-449e-a60e-e75310648c18